fUST/lending_fUST_20240806
["ID","MTS","AMOUNT","RATE_DAILY","PERIOD"]
[334312915,1722949181413,155.09967666,0.00014545,2]
[334312916,1722949187002,154.93199928,0.00014545,2]
[334312917,1722949189702,154.93824139,0.00014545,2]
[334312918,1722949190676,12496.81139471,0.00014545,2]
[334312919,1722949191656,3607.53129253,0.00014545,2]
[334312920,1722949192745,154.59033561,0.00014545,2]
[334312921,1722949194459,413.77152883,0.00014545,2]
[334312922,1722949195707,159.71520453,0.00014545,2]
[334312923,1722949197815,290.31500293,0.00014545,2]
[334312924,1722949197936,154.90624237,0.00014545,2]
[334312925,1722949198103,154.59033561,0.00014545,2]
[334312926,1722949199582,373.96792038,0.00014545,2]
[334312927,1722949200091,242.20157419,0.00014545,2]
[334312928,1722949201494,319.72766707,0.00014545,2]
[334312929,1722949204163,156.77873769,0.00014545,2]
[334312930,1722949210773,154.81926193,0.00014545,2]
[334312931,1722949211279,154.71373025,0.00014545,2]
[334312933,1722949266384,266.72359904,0.00015954,2]
[334312934,1722949358117,204.911039,0.00014247,2]
[334312935,1722949401873,816.39879119,0.00015954,2]
[334312936,1722949625136,-156.61103376,0.00016309,2]
[334312937,1722949625159,-128.71982364,0.00016347,2]
[334312938,1722949638089,-26.13406521,0.00016347,2]
[334312939,1722949638117,-154.57491897,0.00016347,2]
[334312940,1722949638335,-154.71373025,0.00016347,2]
[334312941,1722949638357,-154.86737717,0.00016532,2]
[334312942,1722949638380,-639.84526611,0.00019139,2]
[334312943,1722949638403,-345.29857692,0.00019147,2]
[334312944,1722949638425,-750.05623547,0.00019155,2]
[334312945,1722949638447,-890.04294861,0.00019167,2]
[334312946,1722949638468,-154.83722341,0.00019256,2]
[334312947,1722949638490,-300.0,0.00019999,2]
[334312948,1722949638512,-300.0,0.00019999,2]
[334312949,1722949638533,-156.37509576,0.0002,2]
[334312950,1722949638554,-1021.22014883,0.0002,2]
[334312951,1722949638575,-154.60575532,0.0002,2]
[334312952,1722949638597,-426.89711274,0.0002,2]
[334312953,1722949638618,-154.60575532,0.0002,2]
[334312954,1722949638638,-294.13159854,0.0002,2]
[334312955,1722949638659,-287.82937614,0.0002028,2]
[334312956,1722949638679,-413.01700224,0.0002028,2]
[334312957,1722949638700,-204.911039,0.00020707,2]
[334312958,1722949638720,-156.99277567,0.00020721,2]
[334312959,1722949638741,-155.00974224,0.00020721,2]
[334312960,1722949638762,-200.0,0.00020721,2]
[334312961,1722949638782,-154.57491897,0.00021011,2]
[334312962,1722949638802,-317.72521,0.00024762,2]
[334312963,1722949638823,-189.55103082,0.00025,2]
[334312964,1722949638846,-340.75767159,0.00025017,2]
[334312965,1722949755296,-345.29857692,0.00019147,2]
[334312966,1722949755317,-154.85264005,0.00019547,2]
[334312967,1722949755338,-405.85748006,0.00019547,2]
[334312968,1722949755358,-226.66468815,0.00019547,2]
[334312969,1722949755379,-413.01700224,0.00019547,2]
[334312970,1722949755399,-156.95333335,0.00019547,2]
[334312971,1722949755419,-294.13159854,0.0002,2]
[334312973,1722949776726,192.46695274,0.00021916,2]
[334312992,1722949835044,4181.6719909,0.00021916,2]
[334313000,1722949838093,-189.55103082,0.00025,2]
[334313001,1722949838103,-225.52461006,0.00025017,2]
[334313002,1722949838117,-726.88,0.00025017,2]
[334313003,1722949838131,-3363.08923975,0.00025017,2]
[334313004,1722949838142,-1626.04191113,0.00025017,2]
[334313005,1722949838153,-200.0,0.00025168,15]
[334313006,1722949838162,-158.895698,0.00025295,2]
[334313007,1722949838172,-158.895698,0.00025405,2]
[334313008,1722949838181,-158.895698,0.00025515,2]
[334313009,1722949838191,-301.6559658,0.00025584,2]
[334313010,1722949838200,-158.895698,0.00025625,2]
[334313011,1722949838210,-158.895698,0.00025735,2]
[334313012,1722949838219,-158.895698,0.00025844,2]
[334313013,1722949838229,-158.895698,0.00025954,2]
[334313014,1722949838238,-158.895698,0.00026064,2]
[334313015,1722949838248,-158.895698,0.00026174,2]
[334313016,1722949838257,-158.895698,0.00026284,2]
[334313017,1722949838267,-158.895698,0.00026394,2]
[334313018,1722949838277,-158.895698,0.00026503,2]
[334313019,1722949838286,-862.42234122,0.00026564,2]
[334313020,1722949838296,-1533.42482603,0.00026564,2]
[334313021,1722949838305,-766.39475356,0.00026564,2]
[334313022,1722949838316,-282.7920315,0.00026564,2]
[334313023,1722949838325,-819.90917208,0.00026589,2]
[334313024,1722949838335,-158.895698,0.00026613,2]
[334313025,1722949838344,-204.911039,0.00027167,2]
[334313026,1722949838353,-178.330033,0.00027364,2]
[334313027,1722949838363,-1411.0,0.00028776,2]
[334313028,1722949838372,-293.71890704,0.00030323,4]
[334313029,1722949838381,-2713.31829503,0.00031407,2]
[334313030,1722949838391,-500.0,0.00031504,2]
[334313031,1722949838401,-500.0,0.00031504,2]
[334313032,1722949838411,-443.91962053,0.00031504,2]
[334313033,1722949838420,-204.61177135,0.00031504,2]
[334313034,1722949838429,-24366.47346413,0.00031505,2]
[334313079,1722949840549,379.40969778,0.00021916,2]
[334313080,1722949840570,-2449.9943676,0.00031505,2]
[334313081,1722949840581,-1117.6431691,0.00031505,2]
[334313082,1722949841500,-3119.83146555,0.00031505,2]
[334313104,1722949843226,-1248.41087964,0.00031505,2]
[334313140,1722949846217,-1697.5,0.00031505,2]
[334313149,1722950347058,187.499912,0.00014247,2]
[334313154,1722950433932,729.4,0.00014247,2]
[334313155,1722950450229,154.54409492,0.00014247,2]
[334313156,1722950520626,223.93432146,0.00014247,2]
[334313158,1722950796154,-1610.90790663,0.00016038,2]
[334313159,1722950796176,-3.6565322,0.00017019,2]
[334313160,1722950829126,-1416.7410276,0.00016347,2]
[334313161,1722950839121,-21.76204768,0.00016347,2]
[334313162,1722950839144,-154.72922386,0.00017019,2]
[334313163,1722950839166,-198.60299034,0.00017019,2]
[334313164,1722950839187,-154.79103211,0.00018,2]
[334313165,1722950839213,-1106.1201148,0.0002028,2]
[334313166,1722950839236,-187.499912,0.00020707,2]
[334313167,1722950839264,-300.0,0.0002072,2]
[334313168,1722950839286,-154.9825069,0.00020721,2]
[334313169,1722950839309,-732.93221934,0.00020721,2]
[334313170,1722950839331,-1059.79365994,0.00023538,2]
[334313171,1722950839358,-641.989683,0.00024715,2]
[334313172,1722950839382,-154.72896816,0.00025,2]
[334313173,1722950839409,-200.0,0.00025137,15]
[334313174,1722950839436,-170.539451,0.00025877,2]
[334313175,1722950839463,-170.539451,0.00026027,2]
[334313176,1722950839489,-2437.5034273,0.00026049,2]
[334313177,1722950839524,-189.2404246,0.00026099,2]
[334313178,1722950839550,-170.539451,0.00026177,2]
[334313179,1722950839574,-170.539451,0.00026326,2]
[334313180,1722950839598,-184.707894,0.00026364,2]
[334313181,1722950839620,-402.3465429,0.00026365,2]
[334313182,1722950839642,-1890.8819478,0.00026385,2]
[334313183,1722950839666,-170.539451,0.00026476,2]
[334313184,1722950839691,-170.539451,0.00026626,2]
[334313185,1722950839715,-170.539451,0.00026776,2]
[334313186,1722950839738,-170.589378,0.00026784,2]
[334313187,1722950839770,-170.539451,0.00026926,2]
[334313188,1722950839795,-170.539451,0.00027076,2]
[334313189,1722950839819,-187.499912,0.00027167,2]
[334313190,1722950839842,-170.539451,0.00027225,2]
[334313191,1722950839865,-1411.0,0.00029424,2]
[334313192,1722950839888,-5000.0,0.00031,97]
[334313193,1722950839911,-2374.15350816,0.000314,2]
[334313194,1722950839934,-588.23262905,0.00031496,2]
[334313195,1722950839957,-191.05642641,0.00031496,2]
[334313196,1722950839981,-9100.35412438,0.00031497,2]
[334313197,1722950840003,-21613.31230284,0.000315,4]
[334313198,1722950840033,-2222.0,0.00031505,120]
[334313199,1722950840056,-254.67508939,0.00031505,4]
[334313200,1722950840079,-5618.3692776,0.00031505,4]
[334313201,1722950840103,-317.692024,0.00031507,120]
[334313202,1722950840128,-507.42300514,0.00032084,2]
[334313203,1722950840154,-150.0,0.000321,10]
[334313204,1722950840179,-13234.96153158,0.00032184,21]
[334313205,1722950840203,-500.0,0.00032184,2]
[334313206,1722950840228,-500.0,0.00032184,2]
[334313207,1722950840252,-500.0,0.00032184,2]
[334313208,1722950840283,-500.0,0.00032184,2]
[334313209,1722950840307,-273.16772122,0.00032184,2]
[334313210,1722950840330,-500.0,0.00032184,2]
[334313211,1722950840356,-500.0,0.00032184,2]
[334313212,1722950840380,-500.0,0.00032184,2]
[334313213,1722950840405,-500.0,0.00032184,2]
[334313214,1722950840427,-500.0,0.00032184,2]
[334313215,1722950840450,-500.0,0.00032184,2]
[334313216,1722950840473,-500.0,0.00032184,2]
[334313217,1722950840495,-500.0,0.00032184,2]
[334313218,1722950840524,-500.0,0.00032184,2]
[334313219,1722950840546,-500.0,0.00032184,2]
[334313220,1722950840567,-228.38987196,0.00032184,2]
[334313221,1722950840587,-500.0,0.00032184,2]
[334313222,1722950840608,-500.0,0.00032184,2]
[334313223,1722950840630,-500.0,0.00032184,2]
[334313224,1722950840652,-500.0,0.00032184,2]
[334313225,1722950840675,-500.0,0.00032184,2]
[334313226,1722950840699,-500.0,0.00032184,2]
[334313227,1722950840720,-400.0,0.00032184,2]
[334313228,1722950840741,-500.0,0.00032184,2]
[334313229,1722950840765,-500.0,0.00032184,2]
[334313230,1722950840787,-500.0,0.00032184,2]
[334313231,1722950840809,-500.0,0.00032184,2]
[334313232,1722950840832,-500.0,0.00032184,2]
[334313233,1722950840855,-500.0,0.00032184,2]
[334313234,1722950840878,-150.112233,0.000322,7]
[334313235,1722950840899,-216.15095,0.000322,9]
[334313236,1722950840928,-500.0,0.0003229,2]
[334313237,1722950840960,-34083.1697158,0.00032414,4]
[334313238,1722950840985,-1411.0,0.00032424,2]
[334313239,1722950841015,-507.42300512,0.00032786,2]
[334313240,1722950841042,-153.0,0.00032803,2]
[334313241,1722950841064,-5304.4077302,0.00033,30]
[334313242,1722950841085,-260.0875782,0.00033117,2]
[334313243,1722950841110,-2374.15350815,0.0003324,2]
[334313244,1722950841135,-20038.6479,0.000333,2]
[334313245,1722950841155,-151.0,0.000333,7]
[334313246,1722950841177,-507.42300512,0.00033487,2]
[334313247,1722950841199,-150.112233,0.000336,5]
[334313248,1722950841220,-150.112233,0.000336,6]
[334313249,1722950841241,-187.499912,0.00033626,2]
[334313250,1722950841268,-10000.0,0.00034,34]
[334313251,1722950841289,-151.0,0.00034007,15]
[334313252,1722950841310,-151.0,0.00034007,15]
[334313253,1722950841334,-507.42300512,0.00034189,2]
[334313254,1722950841359,-151.0,0.00034438,120]
[334313255,1722950841380,-2000.0,0.000348,30]
[334313256,1722950841402,-1603.10859394,0.0003489,5]
[334313257,1722950841423,-2000.0,0.0003489,2]
[334313258,1722950841447,-151.0,0.0003489,7]
[334313259,1722950841470,-151.445326,0.0003489,7]
[334313260,1722950841492,-351.847804,0.0003489,7]
[334313261,1722950841664,-351.847804,0.0003489,7]
[334313262,1722950841700,-1544.467112,0.0003489,7]
[334313263,1722950841722,-151.0,0.0003489,7]
[334313264,1722950841745,-151.0,0.0003489,7]
[334313265,1722950841771,-151.0,0.0003489,7]
[334313266,1722950841793,-507.42300512,0.0003489,2]
[334313267,1722950841815,-151.0,0.0003489,7]
[334313268,1722950841836,-1142.712694,0.0003489,7]
[334313269,1722950841858,-1142.712694,0.0003489,7]
[334313270,1722950841881,-15328.41201177,0.0003489,4]
[334313271,1722950846123,-654.73320762,0.0002028,2]
[334313272,1722950846157,-13611.43588109,0.00032175,3]
[334313273,1722950851122,-331.85411891,0.00032175,3]
[334313274,1722950851154,-2000.0,0.0003479,2]
[334313275,1722950851188,-52837.92741983,0.0003489,4]
[334313276,1722950851220,-166.06095,0.0003489,7]
[334313277,1722950851253,-166.06095,0.0003489,7]
[334313278,1722950851287,-999.639226,0.0003489,7]
[334313279,1722950851319,-999.639226,0.0003489,7]
[334313280,1722950851350,-481.29806,0.0003489,7]
[334313281,1722950851384,-612.300794,0.0003489,7]
[334313282,1722950851417,-481.29806,0.0003489,7]
[334313283,1722950851449,-151.0,0.0003489,7]
[334313284,1722950851481,-612.300794,0.0003489,7]
[334313285,1722950851520,-2718.915509,0.0003489,7]
[334313286,1722950851557,-2718.915509,0.0003489,7]
[334313287,1722950851590,-2468.676368,0.0003489,7]
[334313288,1722950851620,-199.15444,0.0003489,7]
[334313289,1722950851651,-1893.08766426,0.0003489,7]
[334313290,1722950853124,-151.0,0.000333,7]
[334313291,1722950853158,-499.48386951,0.0003489,7]
[334313292,1722950853206,-76.10483423,0.0003489,7]
[334313293,1722950853239,-199.15444,0.0003489,7]
[334313294,1722950853278,-1847.25985,0.0003489,7]
[334313295,1722950853312,-151.0,0.0003489,7]
[334313296,1722950853345,-1847.25985,0.0003489,7]
[334313297,1722950853375,-782.966944,0.0003489,7]
[334313298,1722950853398,-782.966944,0.0003489,7]
[334313299,1722950853726,-151.0,0.0003489,7]
[334313300,1722950853749,-150.112233,0.000349,8]
[334313301,1722950853775,-151.0,0.000349,7]
[334313302,1722950853798,-155.462775,0.000349,7]
[334313303,1722950853819,-155.462775,0.000349,7]
[334313304,1722950853843,-223.613889,0.000349,7]
[334313305,1722950853865,-223.613889,0.000349,7]
[334313306,1722950853892,-151.0,0.000349,7]
[334313307,1722950853915,-1771.644079,0.000349,7]
[334313308,1722950853938,-151.0,0.000349,7]
[334313309,1722950853960,-151.0,0.000349,7]
[334313310,1722950853983,-151.0,0.000349,7]
[334313311,1722950854007,-241.401257,0.000349,7]
[334313312,1722950854037,-241.401257,0.000349,7]
[334313313,1722950854059,-151.0,0.000349,7]
[334313314,1722950854085,-151.461701,0.000349,7]
[334313315,1722950854108,-1142.712694,0.000349,7]
[334313316,1722950854133,-1142.712694,0.000349,7]
[334313317,1722950854155,-5581.05710336,0.000349,120]
[334313318,1722950854178,-166.06095,0.000349,7]
[334313319,1722950854201,-166.06095,0.000349,7]
[334313320,1722950854225,-999.639226,0.000349,7]
[334313321,1722950854249,-999.639226,0.000349,7]
[334313322,1722950854278,-481.29806,0.000349,7]
[334313323,1722950854301,-612.300794,0.000349,7]
[334313324,1722950854325,-481.29806,0.000349,7]
[334313325,1722950854349,-151.0,0.000349,7]
[334313326,1722950854377,-612.300794,0.000349,7]
[334313327,1722950854401,-151.0,0.000349,7]
[334313328,1722950854426,-2718.915509,0.000349,7]
[334313329,1722950854453,-2718.915509,0.000349,7]
[334313330,1722950854479,-2468.676368,0.000349,7]
[334313331,1722950854503,-199.15444,0.000349,7]
[334313332,1722950854532,-2468.676368,0.000349,7]
[334313333,1722950854555,-199.15444,0.000349,7]
[334313334,1722950854581,-34083.1697158,0.0003499,4]
[334313335,1722950854605,-151.0,0.0003499,7]
[334313336,1722950854628,-151.0,0.0003499,7]
[334313337,1722950854652,-152.410163,0.0003499,7]
[334313338,1722950854676,-166.67762,0.0003499,7]
[334313339,1722950854698,-166.67762,0.0003499,7]
[334313340,1722950854721,-351.847804,0.0003499,7]
[334313341,1722950854744,-351.847804,0.0003499,7]
[334313342,1722950854773,-237.808297,0.0003499,7]
[334313343,1722950854796,-155.462775,0.0003499,7]
[334313344,1722950854819,-155.462775,0.0003499,7]
[334313345,1722950854843,-223.613889,0.0003499,7]
[334313346,1722950854867,-223.613889,0.0003499,7]
[334313347,1722950854891,-151.0,0.0003499,7]
[334313348,1722950854915,-1771.644079,0.0003499,7]
[334313349,1722950854939,-151.0,0.0003499,7]
[334313350,1722950854963,-151.0,0.0003499,7]
[334313351,1722950854986,-151.0,0.0003499,7]
[334313352,1722950855008,-151.0,0.0003499,7]
[334313353,1722950855036,-151.0,0.0003499,7]
[334313354,1722950855059,-151.0,0.0003499,7]
[334313355,1722950855086,-241.401257,0.0003499,7]
[334313356,1722950855111,-241.401257,0.0003499,7]
[334313357,1722950855134,-151.0,0.0003499,7]
[334313358,1722950855156,-151.0,0.0003499,7]
[334313359,1722950855179,-151.0,0.0003499,7]
[334313360,1722950855202,-1326.171519,0.0003499,7]
[334313361,1722950855225,-1326.171519,0.0003499,7]
[334313362,1722950855251,-158.55,0.0003499,7]
[334313363,1722950855280,-158.55,0.0003499,7]
[334313364,1722950855303,-151.0,0.0003499,7]
[334313365,1722950855326,-158.55,0.0003499,7]
[334313366,1722950855349,-158.55,0.0003499,7]
[334313367,1722950855379,-151.0,0.0003499,7]
[334313368,1722950855404,-151.0,0.0003499,7]
[334313369,1722950855426,-151.0,0.0003499,7]
[334313370,1722950855449,-151.0,0.0003499,7]
[334313371,1722950855472,-151.0,0.0003499,7]
[334313372,1722950855493,-736.784636,0.0003499,7]
[334313373,1722950855523,-736.784636,0.0003499,7]
[334313374,1722950855544,-151.540529,0.0003499,7]
[334313375,1722950855566,-151.540529,0.0003499,7]
[334313376,1722950855588,-736.784636,0.0003499,7]
[334313377,1722950855611,-736.784636,0.0003499,7]
[334313378,1722950855633,-151.540529,0.0003499,7]
[334313379,1722950855656,-151.540529,0.0003499,7]
[334313380,1722950855678,-1142.712694,0.0003499,7]
[334313381,1722950855702,-1142.712694,0.0003499,7]
[334313382,1722950855725,-136332.678863,0.0003499,4]
[334313383,1722950855747,-166.06095,0.0003499,7]
[334313384,1722950855773,-166.06095,0.0003499,7]
[334313385,1722950855795,-999.639226,0.0003499,7]
[334313386,1722950855817,-999.639226,0.0003499,7]
[334313387,1722950855841,-481.29806,0.0003499,7]
[334313388,1722950855864,-612.300794,0.0003499,7]
[334313389,1722950855887,-481.29806,0.0003499,7]
[334313390,1722950855908,-278.649167,0.0003499,7]
[334313391,1722950855931,-612.300794,0.0003499,7]
[334313392,1722950855952,-151.0,0.0003499,7]
[334313393,1722950855977,-2718.915509,0.0003499,7]
[334313394,1722950855999,-2718.915509,0.0003499,7]
[334313395,1722950856024,-2468.676368,0.0003499,7]
[334313396,1722950856046,-199.15444,0.0003499,7]
[334313397,1722950856068,-2468.676368,0.0003499,7]
[334313398,1722950856090,-199.15444,0.0003499,7]
[334313399,1722950856113,-1847.25985,0.0003499,7]
[334313400,1722950856136,-1847.25985,0.0003499,7]
[334313401,1722950856159,-1847.25985,0.0003499,7]
[334313402,1722950856183,-1847.25985,0.0003499,7]
[334313403,1722950856206,-782.966944,0.0003499,7]
[334313404,1722950856229,-782.966944,0.0003499,7]
[334313405,1722950856250,-782.966944,0.0003499,7]
[334313406,1722950856277,-782.966944,0.0003499,7]
[334313407,1722950856300,-151.0,0.0003499,7]
[334313408,1722950856323,-151.0,0.0003499,7]
[334313409,1722950856349,-29357.09598286,0.00035,21]
[334313410,1722950856386,-5000.0,0.00035,120]
[334313411,1722950856409,-503.29952234,0.00035,120]
[334313412,1722950856432,-4145.22009395,0.00035,120]
[334313413,1722950856454,-1000.0,0.00035,35]
[334313414,1722950856478,-309942.16094846,0.00035,2]
[334313416,1722950902238,476.20761208,0.000125,2]
[334313494,1722951033533,-190.95083757,0.00021906,2]
[334313495,1722951033543,-154.80721731,0.00021916,2]
[334313496,1722951033552,-1557.03462032,0.000276,2]
[334313497,1722951033562,-813.086837,0.00028007,2]
[334313498,1722951033574,-863.328,0.00029774,2]
[334313499,1722951033583,-1780.61513113,0.00032085,2]
[334313500,1722951033594,-11619.41,0.00032175,3]
[334313501,1722951033604,-4432.38779667,0.00032175,3]
[334313502,1722951033760,-5250.45220333,0.00032175,3]
[334313503,1722951033770,-2509.33991767,0.00032175,3]
[334313520,1722951038237,-5559.70008233,0.00032175,3]
[334313521,1722951038247,-500.0,0.00032184,2]
[334313522,1722951038257,-500.0,0.00032184,2]
[334313523,1722951038267,-500.0,0.00032184,2]
[334313524,1722951038276,-500.0,0.00032184,2]
[334313525,1722951038286,-500.0,0.00032184,2]
[334313526,1722951038295,-500.0,0.00032184,2]
[334313527,1722951038304,-500.0,0.00032184,2]
[334313528,1722951038313,-500.0,0.00032184,2]
[334313529,1722951038323,-500.0,0.00032184,2]
[334313530,1722951038333,-500.0,0.00032184,2]
[334313531,1722951038342,-500.0,0.00032184,2]
[334313532,1722951038351,-441.21740485,0.00032184,2]
[334313533,1722951038361,-500.0,0.00032184,2]
[334313534,1722951038370,-500.0,0.00032184,2]
[334313535,1722951038379,-500.0,0.00032184,2]
[334313536,1722951038388,-64772.00631295,0.00032185,36]
[334313538,1722951039606,-35142.99368705,0.00032185,36]
[334313539,1722951039616,-154.8006082,0.00032185,30]
[334313540,1722951039626,-151.0,0.000333,7]
[334313541,1722951039635,-1586.977755,0.000333,7]
[334313542,1722951039644,-1586.977755,0.000333,7]
[334313543,1722951039666,-1467.243756,0.000333,7]
[334313544,1722951039675,-1467.243756,0.000333,7]
[334313545,1722951039685,-1780.61513111,0.00033828,2]
[334313546,1722951039695,-1000.0,0.00034,34]
[334313547,1722951039704,-2000.0,0.0003479,2]
[334313548,1722951039713,-151.0,0.0003489,7]
[334313549,1722951039723,-151.0,0.0003489,7]
[334313550,1722951039733,-151.0,0.0003489,7]
[334313551,1722951039742,-1300.562055,0.0003489,7]
[334313552,1722951039752,-1586.977755,0.0003489,7]
[334313553,1722951039762,-1300.562055,0.0003489,7]
[334313554,1722951039771,-1594.479671,0.0003489,7]
[334313555,1722951039781,-1586.977755,0.0003489,7]
[334313556,1722951039791,-1467.243756,0.0003489,7]
[334313557,1722951039800,-1193.554367,0.0003489,7]
[334313558,1722951039810,-1594.479671,0.0003489,7]
[334313559,1722951039820,-1467.243756,0.0003489,7]
[334313561,1722951039829,-1193.554367,0.0003489,7]
[334313562,1722951039840,-151.0,0.0003489,7]
[334313563,1722951039850,-151.0,0.0003489,7]
[334313564,1722951039861,-151.0,0.0003489,7]
[334313565,1722951039871,-151.0,0.000349,7]
[334313566,1722951039880,-932.93084278,0.000349,2]
[334313567,1722951039889,-151.0,0.000349,7]
[334313568,1722951039910,-1300.562055,0.000349,7]
[334313569,1722951039921,-1300.562055,0.000349,7]
[334313570,1722951039932,-935.55409986,0.000349,7]
[334313572,1722951040211,-157.41566973,0.000349,7]
[334313573,1722951040572,-501.50990141,0.000349,7]
[334313574,1722951040582,-1083.61999733,0.000349,7]
[334313579,1722951042471,-1527.85694254,0.0003479,2]
[334313581,1722951042481,-109.93436967,0.000349,7]
[334313582,1722951042491,-200.0,0.000349,2]
[334313584,1722951042501,-1594.479671,0.000349,7]
[334313586,1722951042510,-1193.554367,0.000349,7]
[334313587,1722951042519,-151.0,0.000349,7]
[334313588,1722951042528,-151.0,0.000349,7]
[334313589,1722951042537,-218.64845,0.000349,7]
[334313590,1722951042546,-151.0,0.0003499,7]
[334313591,1722951042556,-281.05158,0.0003499,7]
[334313592,1722951042567,-151.0,0.0003499,7]
[334313593,1722951042577,-151.0,0.0003499,7]
[334313594,1722951042586,-151.0,0.0003499,7]
[334313595,1722951042595,-151.0,0.0003499,7]
[334313596,1722951042604,-1300.562055,0.0003499,7]
[334313597,1722951042614,-1300.562055,0.0003499,7]
[334313598,1722951042623,-1586.977755,0.0003499,7]
[334313599,1722951042632,-813.81274797,0.0003499,7]
[334313632,1722951043384,-179.39604876,0.0003499,7]
[334313633,1722951043396,-593.76895827,0.0003499,7]
[334313634,1722951043415,-1300.562055,0.0003499,7]
[334313635,1722951043425,-1586.977755,0.0003499,7]
[334313636,1722951043434,-1586.977755,0.0003499,7]
[334313637,1722951043443,-1467.243756,0.0003499,7]
[334313638,1722951043454,-1594.479671,0.0003499,7]
[334313639,1722951043464,-1467.243756,0.0003499,7]
[334313640,1722951043473,-1300.562055,0.0003499,7]
[334313641,1722951043483,-1594.479671,0.0003499,7]
[334313642,1722951043493,-1043.6414672,0.0003499,7]
[334313661,1722951311598,183.735228,0.00014247,2]
[334313667,1722952036152,-1091.57771247,0.0002028,2]
[334313668,1722952036174,-183.735228,0.00020707,2]
[334313669,1722952036196,-204.26455566,0.00020721,2]
[334313670,1722952036224,-183.735228,0.00027167,2]
[334313671,1722952036246,-178.330033,0.00028676,2]
[334313672,1722952036270,-291.4442666,0.00029211,2]
[334313673,1722952036291,-4725.37540335,0.0003,2]
[334313731,1722952232358,-113.10450002,0.0003,2]
[334313733,1722952232367,-443.20205614,0.0003,4]
[334313775,1722952238439,-3629.14584492,0.0003,4]
[334313776,1722952238448,-254.67508939,0.0003,4]
[334313777,1722952238458,-238.269018,0.00031507,120]
[334313778,1722952238476,-319.97579305,0.00032,32]
[334313790,1722952242226,-680.02420695,0.00032,32]
[334313791,1722952242236,-174.82516461,0.00032162,2]
[334313792,1722952242246,-1787.39362617,0.00032162,2]
[334313793,1722952242256,-150.112233,0.000322,10]
[334313794,1722952242265,-2448.17684727,0.00032252,3]
[334313795,1722952242278,-3155.32315273,0.00032252,3]
[334313796,1722952242287,-500.0,0.00032261,2]
[334313797,1722952242296,-500.0,0.00032261,2]
[334313798,1722952242306,-500.0,0.00032261,2]
[334313799,1722952242316,-500.0,0.00032261,2]
[334313800,1722952242325,-358.85218339,0.00032261,2]
[334313802,1722952242335,-500.0,0.00032261,2]
[334313805,1722952242345,-500.0,0.00032261,2]
[334313806,1722952242354,-239.87291037,0.00032261,2]
[334313808,1722952242363,-500.0,0.00032261,2]
[334313810,1722952242372,-500.0,0.00032261,2]
[334313812,1722952242382,-500.0,0.00032261,2]
[334313813,1722952242390,-500.0,0.00032261,2]
[334313814,1722952242400,-500.0,0.00032261,2]
[334313816,1722952242408,-500.0,0.00032261,2]
[334313818,1722952242417,-500.0,0.00032261,2]
[334313820,1722952242426,-500.0,0.00032261,2]
[334313822,1722952242436,-500.0,0.00032261,2]
[334313824,1722952242445,-500.0,0.00032261,2]
[334313826,1722952242454,-500.0,0.00032261,2]
[334313828,1722952242468,-500.0,0.00032261,2]
[334313830,1722952242478,-250.0,0.00032261,2]
[334313832,1722952242488,-3039.671637,0.00032262,60]
[334313834,1722952242499,-664.7762907,0.00032262,60]
[334313851,1722952243392,-1041.50543224,0.00032262,60]
[334313852,1722952243403,-11607.51328476,0.00032262,60]
[334313853,1722952243479,-16586.15508434,0.00032262,60]
[334313887,1722952246763,-945.01709479,0.00032262,21]
[334313888,1722952246776,-5672.463671,0.00032262,21]